[Event "Early-Titled-Tuesday-Blitz-September-12-2023"]
[Site "Chess.com"]
[Date "2023.09.12"]
[Round "8"]
[White "APOKALIPSA13"]
[Black "DeArron_Fox"]
[Result "0-1"]
[WhiteElo "2273"]
[BlackElo "2500"]
[TimeControl "180+1"]
[EndTime "9:30:46 PDT"]
[Termination "DeArron_Fox won on time"]

1. e4 {[%clk 0:02:54.6]} 1... c5 {[%clk 0:03:00]} 2. Nf3 {[%clk 0:02:52.9]} 2...
e6 {[%clk 0:02:59.5]} 3. d4 {[%clk 0:02:52.8]} 3... cxd4 {[%clk 0:03:00.4]} 4.
Nxd4 {[%clk 0:02:53.2]} 4... a6 {[%clk 0:03:01.3]} 5. Nc3 {[%clk 0:02:52.8]}
5... b5 {[%clk 0:03:01.6]} 6. Rg1 {[%clk 0:02:53.1]} 6... Bb7 {[%clk 0:03:02.2]}
7. a3 {[%clk 0:02:50.6]} 7... Nc6 {[%clk 0:02:59.4]} 8. Nb3 {[%clk 0:02:49.8]}
8... Nf6 {[%clk 0:02:55.4]} 9. g4 {[%clk 0:02:48.6]} 9... h5 {[%clk 0:02:42.7]}
10. g5 {[%clk 0:02:48.3]} 10... Ng4 {[%clk 0:02:41.8]} 11. h4 {[%clk 0:02:10.1]}
11... Qb6 {[%clk 0:02:38]} 12. Rg2 {[%clk 0:02:01]} 12... Rc8 {[%clk 0:02:13.4]}
13. Bd3 {[%clk 0:01:41.5]} 13... Na5 {[%clk 0:01:27.8]} 14. Nxa5 {[%clk
0:01:30.6]} 14... Qxa5 {[%clk 0:01:28.7]} 15. f3 {[%clk 0:01:29.2]} 15... Ne5
{[%clk 0:01:05.4]} 16. Bd2 {[%clk 0:01:23.6]} 16... Qb6 {[%clk 0:00:56.6]} 17.
Qe2 {[%clk 0:01:19.7]} 17... b4 {[%clk 0:00:45.7]} 18. Na4 {[%clk 0:01:19.1]}
18... Qd4 {[%clk 0:00:44.5]} 19. axb4 {[%clk 0:01:13.2]} 19... Bxb4 {[%clk
0:00:41.8]} 20. Bxb4 {[%clk 0:01:05.7]} 20... Qxb4+ {[%clk 0:00:42.7]} 21. c3
{[%clk 0:01:05.6]} 21... Qd6 {[%clk 0:00:28.8]} 22. O-O-O {[%clk 0:00:59.2]}
22... Ng6 {[%clk 0:00:12.1]} 23. Bxa6 {[%clk 0:00:55.2]} 23... Qxa6 {[%clk
0:00:11.5]} 24. Qxa6 {[%clk 0:00:51]} 24... Bxa6 {[%clk 0:00:12.4]} 25. Rgd2
{[%clk 0:00:49.8]} 25... Bb5 {[%clk 0:00:08.5]} 26. Nb6 {[%clk 0:00:46.9]} 26...
Rc7 {[%clk 0:00:08.7]} 27. Rd4 {[%clk 0:00:36.6]} 27... Ke7 {[%clk 0:00:04.8]}
28. Rb4 {[%clk 0:00:34.8]} 28... Bc6 {[%clk 0:00:04.4]} 29. Rh1 {[%clk
0:00:29.1]} 29... Rb7 {[%clk 0:00:04.7]} 30. c4 {[%clk 0:00:27.8]} 30... Rhb8
{[%clk 0:00:05]} 31. c5 {[%clk 0:00:27.9]} 31... d6 {[%clk 0:00:03.7]} 32. cxd6+
{[%clk 0:00:27.1]} 32... Kxd6 {[%clk 0:00:04.6]} 33. Nc4+ {[%clk 0:00:23.3]}
33... Kc5 {[%clk 0:00:03.8]} 34. Rxb7 {[%clk 0:00:22.9]} 34... Rxb7 {[%clk
0:00:04.7]} 35. Nd2 {[%clk 0:00:22.2]} 35... Nf4 {[%clk 0:00:03.3]} 36. Kc2
{[%clk 0:00:22]} 36... Ba4+ {[%clk 0:00:03.7]} 37. Kc3 {[%clk 0:00:21.6]} 37...
Ne2+ {[%clk 0:00:03.1]} 38. Kd3 {[%clk 0:00:21.4]} 38... Nf4+ {[%clk 0:00:04]}
39. Kc3 {[%clk 0:00:21.4]} 39... e5 {[%clk 0:00:04.8]} 40. b4+ {[%clk
0:00:21.3]} 40... Rxb4 {[%clk 0:00:04.1]} 41. Ra1 {[%clk 0:00:19.6]} 41... Bc6
{[%clk 0:00:02.7]} 42. Ra5+ {[%clk 0:00:19.3]} 42... Rb5 {[%clk 0:00:02.6]} 43.
Nb3+ {[%clk 0:00:19.7]} 43... Kb6 {[%clk 0:00:02.2]} 44. Ra3 {[%clk 0:00:16.1]}
44... Bb7 {[%clk 0:00:02.6]} 45. Ra4 {[%clk 0:00:15.8]} 45... Kc7 {[%clk
0:00:02.7]} 46. Rc4+ {[%clk 0:00:15.8]} 46... Kb8 {[%clk 0:00:02.9]} 47. Nc5
{[%clk 0:00:15.7]} 47... Ka7 {[%clk 0:00:02.3]} 48. Nd7 {[%clk 0:00:15.2]} 48...
Ra5 {[%clk 0:00:02.3]} 49. Rc7 {[%clk 0:00:14]} 49... Ra3+ {[%clk 0:00:02.3]}
50. Kb4 {[%clk 0:00:14.4]} 50... Rxf3 {[%clk 0:00:02.6]} 51. Nc5 {[%clk
0:00:14.6]} 51... Ka8 {[%clk 0:00:02.2]} 52. Rxb7 {[%clk 0:00:14.3]} 52... Nd3+
{[%clk 0:00:02.6]} 53. Kb5 {[%clk 0:00:13.1]} 53... Nxc5 {[%clk 0:00:02.8]} 54.
Re7 {[%clk 0:00:12.1]} 54... Nxe4 {[%clk 0:00:02.8]} 55. Rxe5 {[%clk 0:00:12]}
55... Rb3+ {[%clk 0:00:03]} 56. Kc4 {[%clk 0:00:11.6]} 56... Nd2+ {[%clk
0:00:03.3]} 57. Kc5 {[%clk 0:00:10.7]} 57... Ra3 {[%clk 0:00:02.3]} 58. Re8+
{[%clk 0:00:10.4]} 58... Kb7 {[%clk 0:00:02.6]} 59. Re7+ {[%clk 0:00:11]} 59...
Ka6 {[%clk 0:00:03.2]} 60. Rxf7 {[%clk 0:00:11.2]} 60... Ra5+ {[%clk 0:00:02.1]}
61. Kc6 {[%clk 0:00:10.4]} 61... Nf3 {[%clk 0:00:01.9]} 62. Rxg7 {[%clk
0:00:10.3]} 62... Nxh4 {[%clk 0:00:02.4]} 63. Rh7 {[%clk 0:00:10]} 63... Rxg5
{[%clk 0:00:02.9]} 64. Kd6 {[%clk 0:00:09.6]} 64... Nf5+ {[%clk 0:00:02.8]} 65.
Ke6 {[%clk 0:00:09.6]} 65... Nd4+ {[%clk 0:00:03.3]} 66. Kf6 {[%clk 0:00:09.6]}
66... Rb5 {[%clk 0:00:02.4]} 67. Kg6 {[%clk 0:00:09.3]} 67... Ne6 {[%clk
0:00:03]} 68. Rh6 {[%clk 0:00:07.9]} 68... Nf4+ {[%clk 0:00:01.6]} 69. Kg7+
{[%clk 0:00:06.6]} 69... Ka5 {[%clk 0:00:02.5]} 70. Kf6 {[%clk 0:00:06.4]} 70...
Kb4 {[%clk 0:00:02.1]} 71. Rh7 {[%clk 0:00:06]} 71... Kc4 {[%clk 0:00:02.4]} 72.
Kg7 {[%clk 0:00:06.2]} 72... Kd4 {[%clk 0:00:02.6]} 73. Kf6 {[%clk 0:00:06.5]}
73... Ke4 {[%clk 0:00:03]} 74. Kg7 {[%clk 0:00:07]} 74... Kf3 {[%clk 0:00:03.5]}
75. Kh6 {[%clk 0:00:07.5]} 75... Kg4 {[%clk 0:00:03.1]} 76. Rg7+ {[%clk
0:00:07.9]} 76... Kh4 {[%clk 0:00:03.2]} 77. Rg1 {[%clk 0:00:07.7]} 77... Rb6+
{[%clk 0:00:02.5]} 78. Kg7 {[%clk 0:00:08.3]} 78... Kh3 {[%clk 0:00:02.4]} 79.
Kf7 {[%clk 0:00:07.7]} 79... h4 {[%clk 0:00:02.7]} 80. Rg7 {[%clk 0:00:07.7]}
80... Ng2 {[%clk 0:00:02.7]} 81. Rg5 {[%clk 0:00:07]} 81... Rb3 {[%clk
0:00:03.1]} 82. Kf6 {[%clk 0:00:07.1]} 82... Rg3 {[%clk 0:00:03.4]} 83. Rh5
{[%clk 0:00:06.9]} 83... Kg4 {[%clk 0:00:03.3]} 84. Rh7 {[%clk 0:00:06.6]} 84...
h3 {[%clk 0:00:03.9]} 85. Ke5 {[%clk 0:00:06.7]} 85... Nh4 {[%clk 0:00:03.6]}
86. Kd4 {[%clk 0:00:06.3]} 86... h2 {[%clk 0:00:02.7]} 87. Rg7+ {[%clk
0:00:06.8]} 87... Kh3 {[%clk 0:00:02.8]} 88. Rh7 {[%clk 0:00:06.2]} 88... h1=Q
{[%clk 0:00:02.9]} 89. Rxh4+ {[%clk 0:00:06.5]} 89... Kxh4 {[%clk 0:00:03.8]}
0-1

[Event "Early-Titled-Tuesday-Blitz-September-12-2023"]
[Site "Chess.com"]
[Date "2023.09.12"]
[Round "8"]
[White "vi_pranav"]
[Black "MITerryble"]
[Result "0-1"]
[WhiteElo "2980"]
[BlackElo "2956"]
[TimeControl "180+1"]
[EndTime "9:30:47 PDT"]
[Termination "MITerryble won by resignation"]

1. e4 {[%clk 0:03:00.9]} 1... e6 {[%clk 0:03:00.4]} 2. d4 {[%clk 0:03:00.4]}
2... d5 {[%clk 0:03:01.1]} 3. Nc3 {[%clk 0:03:01.1]} 3... Nf6 {[%clk 0:03:01.6]}
4. Bg5 {[%clk 0:02:55.6]} 4... Bb4 {[%clk 0:03:01.3]} 5. e5 {[%clk 0:02:54.9]}
5... h6 {[%clk 0:03:01.7]} 6. Bd2 {[%clk 0:02:54.4]} 6... Bxc3 {[%clk
0:03:02.2]} 7. Bxc3 {[%clk 0:02:54.4]} 7... Ne4 {[%clk 0:03:02.5]} 8. Bd3 {[%clk
0:02:54.9]} 8... Nxc3 {[%clk 0:02:59.4]} 9. bxc3 {[%clk 0:02:55.8]} 9... c5
{[%clk 0:02:59]} 10. Qg4 {[%clk 0:02:53.3]} 10... O-O {[%clk 0:02:58.1]} 11.
dxc5 {[%clk 0:02:04.5]} 11... Nd7 {[%clk 0:02:47.4]} 12. Nf3 {[%clk 0:01:59.6]}
12... Qc7 {[%clk 0:02:35.6]} 13. O-O {[%clk 0:01:53.4]} 13... Nxe5 {[%clk
0:02:32.4]} 14. Nxe5 {[%clk 0:01:51.8]} 14... Qxe5 {[%clk 0:02:33.3]} 15. Qb4
{[%clk 0:01:51.9]} 15... Qc7 {[%clk 0:02:23]} 16. c6 {[%clk 0:01:49.5]} 16...
Rd8 {[%clk 0:02:06.4]} 17. cxb7 {[%clk 0:01:47.7]} 17... Bxb7 {[%clk 0:02:07.3]}
18. Rab1 {[%clk 0:01:45]} 18... Bc6 {[%clk 0:02:00.6]} 19. f4 {[%clk 0:01:36.9]}
19... Bd7 {[%clk 0:01:24.3]} 20. Qd4 {[%clk 0:01:33.9]} 20... a5 {[%clk
0:01:13.7]} 21. c4 {[%clk 0:01:17.1]} 21... dxc4 {[%clk 0:01:02.6]} 22. Qxc4
{[%clk 0:01:16.7]} 22... Qa7+ {[%clk 0:00:55.8]} 23. Kh1 {[%clk 0:01:14.1]}
23... Rac8 {[%clk 0:00:56.4]} 24. Qe4 {[%clk 0:01:13.6]} 24... g6 {[%clk
0:00:54.5]} 25. Qe1 {[%clk 0:00:35.4]} 25... Qc5 {[%clk 0:00:50.8]} 26. Qh4
{[%clk 0:00:32.7]} 26... Kg7 {[%clk 0:00:49.4]} 27. h3 {[%clk 0:00:16.2]} 27...
Bc6 {[%clk 0:00:49.1]} 28. Rbe1 {[%clk 0:00:16]} 28... Rd5 {[%clk 0:00:43.3]}
29. Qg3 {[%clk 0:00:12.9]} 29... Rcd8 {[%clk 0:00:39.1]} 30. Kh2 {[%clk
0:00:12.9]} 30... a4 {[%clk 0:00:36.7]} 31. Re4 {[%clk 0:00:10.9]} 31... a3
{[%clk 0:00:21.9]} 32. Rc4 {[%clk 0:00:10.4]} 32... Qb6 {[%clk 0:00:20.9]} 33.
Rc3 {[%clk 0:00:06.7]} 33... Ra5 {[%clk 0:00:19.1]} 34. f5 {[%clk 0:00:05.3]}
34... exf5 {[%clk 0:00:16.7]} 35. Rb3 {[%clk 0:00:03.3]} 35... Qc5 {[%clk
0:00:15.3]} 36. Qc7 {[%clk 0:00:02.5]} 36... Rd7 {[%clk 0:00:14.8]} 37. Qg3
{[%clk 0:00:03]} 37... Qd6 {[%clk 0:00:13.2]} 38. Bxf5 {[%clk 0:00:02]} 38...
Qxg3+ {[%clk 0:00:13]} 39. Rxg3 {[%clk 0:00:02.9]} 39... Rd2 {[%clk 0:00:12.2]}
40. Bd3 {[%clk 0:00:03.3]} 40... Bd5 {[%clk 0:00:08.4]} 41. Ra1 {[%clk
0:00:03.5]} 41... Ra7 {[%clk 0:00:04.9]} 42. c4 {[%clk 0:00:02.9]} 42... Bc6
{[%clk 0:00:04.6]} 43. Bf1 {[%clk 0:00:03.3]} 43... Rb2 {[%clk 0:00:03.8]} 44.
Kg1 {[%clk 0:00:03.5]} 44... h5 {[%clk 0:00:04]} 45. c5 {[%clk 0:00:03.4]} 45...
h4 {[%clk 0:00:04.1]} 46. Rc3 {[%clk 0:00:04]} 46... Ra5 {[%clk 0:00:04.6]} 47.
Kh1 {[%clk 0:00:01.6]} 47... f5 {[%clk 0:00:05]} 48. Kg1 {[%clk 0:00:02.2]}
48... Kf6 {[%clk 0:00:05.4]} 49. Rd1 {[%clk 0:00:02.8]} 49... Kg5 {[%clk
0:00:05.7]} 50. Rd6 {[%clk 0:00:03]} 50... Be4 {[%clk 0:00:05.9]} 51. c6 {[%clk
0:00:03.3]} 51... Ra8 {[%clk 0:00:02.9]} 52. c7 {[%clk 0:00:03.6]} 52... Rc8
{[%clk 0:00:02.6]} 53. Ba6 {[%clk 0:00:04]} 53... Rxg2+ {[%clk 0:00:01.5]} 54.
Kf1 {[%clk 0:00:04.1]} 54... Rxc7 {[%clk 0:00:02.4]} 55. Rxc7 {[%clk 0:00:04.3]}
55... Rxa2 {[%clk 0:00:03.3]} 56. Rg7 {[%clk 0:00:04.1]} 56... Kf4 {[%clk
0:00:01.9]} 57. Rgxg6 {[%clk 0:00:03.7]} 57... Ke3 {[%clk 0:00:02.5]} 58. Rd1
{[%clk 0:00:02.2]} 58... Rh2 {[%clk 0:00:02.9]} 59. Re1+ {[%clk 0:00:02.6]}
59... Kf4 {[%clk 0:00:02.8]} 60. Re2 {[%clk 0:00:02.2]} 60... Rh1+ {[%clk
0:00:02.6]} 61. Kf2 {[%clk 0:00:02.5]} 61... Rh2+ {[%clk 0:00:02.5]} 62. Ke1
{[%clk 0:00:03.2]} 62... a2 {[%clk 0:00:02.1]} 63. Rxa2 {[%clk 0:00:02.4]} 63...
Rxa2 {[%clk 0:00:02.6]} 64. Bc4 {[%clk 0:00:03.1]} 64... Rh2 {[%clk 0:00:02.1]}
65. Rh6 {[%clk 0:00:03.5]} 65... Rxh3 {[%clk 0:00:02.4]} 66. Kf2 {[%clk
0:00:04]} 66... Rh2+ {[%clk 0:00:02.8]} 67. Ke1 {[%clk 0:00:04.4]} 67... Rh1+
{[%clk 0:00:02.9]} 68. Kf2 {[%clk 0:00:04.6]} 68... Rh2+ {[%clk 0:00:03.1]} 69.
Kg1 {[%clk 0:00:04.3]} 69... Rg2+ {[%clk 0:00:03.3]} 70. Kf1 {[%clk 0:00:04.7]}
70... Kg3 {[%clk 0:00:02.9]} 71. Be6 {[%clk 0:00:04.1]} 71... Rf2+ {[%clk
0:00:02.8]} 72. Kg1 {[%clk 0:00:02.9]} 72... Rb2 {[%clk 0:00:03.7]} 73. Rg6+
{[%clk 0:00:02.8]} 73... Kf4 {[%clk 0:00:04]} 74. Rh6 {[%clk 0:00:03.2]} 74...
Kg5 {[%clk 0:00:03.7]} 75. Rh8 {[%clk 0:00:03.2]} 75... f4 {[%clk 0:00:02.4]}
76. Rg8+ {[%clk 0:00:03.1]} 76... Kf6 {[%clk 0:00:02.9]} 77. Bc8 {[%clk
0:00:02.1]} 77... Rb1+ {[%clk 0:00:03.2]} 78. Kf2 {[%clk 0:00:02.2]} 78... Rb2+
{[%clk 0:00:03.7]} 79. Kg1 {[%clk 0:00:02.6]} 79... f3 {[%clk 0:00:03.2]} 80.
Bh3 {[%clk 0:00:03.1]} 80... Ke5 {[%clk 0:00:02.4]} 81. Rg4 {[%clk 0:00:03.3]}
81... Kd4 {[%clk 0:00:02.6]} 82. Rxh4 {[%clk 0:00:02.7]} 82... Ke3 {[%clk
0:00:03.2]} 83. Rh8 {[%clk 0:00:03.1]} 83... f2+ {[%clk 0:00:03.1]} 84. Kh2
{[%clk 0:00:02.5]} 84... f1=Q+ {[%clk 0:00:03.4]} 0-1

[Event "Early-Titled-Tuesday-Blitz-September-12-2023"]
[Site "Chess.com"]
[Date "2023.09.12"]
[Round "8"]
[White "OparinGrigoriy"]
[Black "PeshkaCh"]
[Result "1-0"]
[WhiteElo "3016"]
[BlackElo "2776"]
[TimeControl "180+1"]
[EndTime "9:30:55 PDT"]
[Termination "OparinGrigoriy won by checkmate"]

1. d4 {[%clk 0:03:00.9]} 1... Nf6 {[%clk 0:02:59.2]} 2. Nf3 {[%clk 0:03:01.5]}
2... e6 {[%clk 0:02:59.6]} 3. c4 {[%clk 0:03:02.2]} 3... d5 {[%clk 0:03:00]} 4.
g3 {[%clk 0:03:02.9]} 4... Be7 {[%clk 0:03:00.3]} 5. Bg2 {[%clk 0:03:03.3]} 5...
O-O {[%clk 0:03:00.9]} 6. Nc3 {[%clk 0:03:03.4]} 6... h6 {[%clk 0:02:55.5]} 7.
O-O {[%clk 0:03:02.4]} 7... c5 {[%clk 0:02:54.1]} 8. cxd5 {[%clk 0:03:00.1]}
8... exd5 {[%clk 0:02:52]} 9. dxc5 {[%clk 0:02:48.9]} 9... Bxc5 {[%clk
0:02:52.9]} 10. Na4 {[%clk 0:02:48.3]} 10... Be7 {[%clk 0:02:50.8]} 11. Be3
{[%clk 0:02:48.4]} 11... Nc6 {[%clk 0:02:49.3]} 12. Rc1 {[%clk 0:02:46.8]} 12...
Bg4 {[%clk 0:02:48.9]} 13. Bc5 {[%clk 0:02:44.1]} 13... Re8 {[%clk 0:02:45.9]}
14. Re1 {[%clk 0:02:41.6]} 14... Qa5 {[%clk 0:02:43.3]} 15. a3 {[%clk
0:02:37.1]} 15... Ne4 {[%clk 0:02:19.2]} 16. Bxe7 {[%clk 0:02:37.1]} 16... Rxe7
{[%clk 0:02:20.1]} 17. b4 {[%clk 0:02:34.7]} 17... Qb5 {[%clk 0:02:19.2]} 18.
Nc5 {[%clk 0:02:24.7]} 18... Rae8 {[%clk 0:02:07]} 19. Qxd5 {[%clk 0:01:30.9]}
19... Nf6 {[%clk 0:02:06]} 20. Qc4 {[%clk 0:01:26.9]} 20... Qxc4 {[%clk
0:02:00.8]} 21. Rxc4 {[%clk 0:01:27.8]} 21... Rxe2 {[%clk 0:02:01.5]} 22. Rxe2
{[%clk 0:01:25.5]} 22... Rxe2 {[%clk 0:02:02.4]} 23. h3 {[%clk 0:01:16.3]} 23...
Bxf3 {[%clk 0:01:53.9]} 24. Bxf3 {[%clk 0:01:17.2]} 24... Re1+ {[%clk
0:01:53.3]} 25. Kg2 {[%clk 0:01:15.9]} 25... Ne5 {[%clk 0:01:53.8]} 26. Rc3
{[%clk 0:01:03.3]} 26... b6 {[%clk 0:01:47.8]} 27. Nd3 {[%clk 0:01:03.1]} 27...
Nxd3 {[%clk 0:01:35.2]} 28. Rxd3 {[%clk 0:01:04]} 28... Ra1 {[%clk 0:01:28.8]}
29. Bd1 {[%clk 0:00:58.4]} 29... g6 {[%clk 0:01:23.1]} 30. Bb3 {[%clk 0:00:55]}
30... Kg7 {[%clk 0:01:22.3]} 31. Bc4 {[%clk 0:00:54.8]} 31... Rc1 {[%clk
0:01:19.5]} 32. Bb5 {[%clk 0:00:55]} 32... Rc2 {[%clk 0:01:19]} 33. Re3 {[%clk
0:00:53]} 33... a5 {[%clk 0:01:15.9]} 34. bxa5 {[%clk 0:00:52.5]} 34... bxa5
{[%clk 0:01:16.8]} 35. Re5 {[%clk 0:00:47.6]} 35... Ra2 {[%clk 0:00:46.9]} 36.
a4 {[%clk 0:00:47.9]} 36... Rd2 {[%clk 0:00:47.3]} 37. Bc6 {[%clk 0:00:46.2]}
37... Rd6 {[%clk 0:00:41.1]} 38. Bf3 {[%clk 0:00:38]} 38... Ra6 {[%clk
0:00:40.4]} 39. Rb5 {[%clk 0:00:33]} 39... Ne8 {[%clk 0:00:38.2]} 40. Be2 {[%clk
0:00:28.6]} 40... Ra7 {[%clk 0:00:37.4]} 41. Rb6 {[%clk 0:00:29]} 41... Nc7
{[%clk 0:00:37.6]} 42. Bc4 {[%clk 0:00:28.6]} 42... Kf8 {[%clk 0:00:31.2]} 43.
h4 {[%clk 0:00:25.8]} 43... h5 {[%clk 0:00:30.7]} 44. f3 {[%clk 0:00:25.6]}
44... Ne8 {[%clk 0:00:29.7]} 45. g4 {[%clk 0:00:25.6]} 45... Rc7 {[%clk
0:00:28.4]} 46. Bb5 {[%clk 0:00:24.1]} 46... Ke7 {[%clk 0:00:17.3]} 47. gxh5
{[%clk 0:00:23.4]} 47... gxh5 {[%clk 0:00:17.2]} 48. Ra6 {[%clk 0:00:21.8]}
48... Nd6 {[%clk 0:00:16.4]} 49. Rxa5 {[%clk 0:00:22.2]} 49... Nf5 {[%clk
0:00:16.9]} 50. Bd3 {[%clk 0:00:17.8]} 50... Nxh4+ {[%clk 0:00:16.4]} 51. Kf2
{[%clk 0:00:18]} 51... Ng6 {[%clk 0:00:12.7]} 52. Ra8 {[%clk 0:00:13]} 52... Ne5
{[%clk 0:00:12.2]} 53. Be2 {[%clk 0:00:13]} 53... Nc6 {[%clk 0:00:10.1]} 54. a5
{[%clk 0:00:13]} 54... Ra7 {[%clk 0:00:10.6]} 55. Rxa7+ {[%clk 0:00:11.6]} 55...
Nxa7 {[%clk 0:00:11.5]} 56. Kg3 {[%clk 0:00:11.1]} 56... Kf6 {[%clk 0:00:11.2]}
57. Kh4 {[%clk 0:00:11.7]} 57... Kg6 {[%clk 0:00:09.2]} 58. Bd3+ {[%clk
0:00:12.2]} 58... Kh6 {[%clk 0:00:09.4]} 59. a6 {[%clk 0:00:12]} 59... Nc6
{[%clk 0:00:09.4]} 60. Be4 {[%clk 0:00:12.1]} 60... Na7 {[%clk 0:00:09.7]} 61.
Bd5 {[%clk 0:00:11.2]} 61... f6 {[%clk 0:00:09.5]} 62. Bf7 {[%clk 0:00:10.7]}
62... Nc6 {[%clk 0:00:06.7]} 63. Bxh5 {[%clk 0:00:10.4]} 63... Na7 {[%clk
0:00:06.6]} 64. Be8 {[%clk 0:00:10.7]} 64... Nc8 {[%clk 0:00:05.8]} 65. Bd7
{[%clk 0:00:10]} 65... Na7 {[%clk 0:00:04.5]} 66. Kg4 {[%clk 0:00:10.6]} 66...
Kg7 {[%clk 0:00:05]} 67. Kf5 {[%clk 0:00:10.7]} 67... Kf7 {[%clk 0:00:05.7]} 68.
Ba4 {[%clk 0:00:08.5]} 68... Ke7 {[%clk 0:00:05.5]} 69. Bb3 {[%clk 0:00:09.1]}
69... Nc6 {[%clk 0:00:05.3]} 70. Bd5 {[%clk 0:00:09]} 70... Na7 {[%clk
0:00:05.2]} 71. Be4 {[%clk 0:00:08.6]} 71... Nb5 {[%clk 0:00:05.3]} 72. Kf4
{[%clk 0:00:08.6]} 72... Ke6 {[%clk 0:00:05]} 73. Ke3 {[%clk 0:00:08.2]} 73...
Kd6 {[%clk 0:00:03.9]} 74. Bb7 {[%clk 0:00:07.4]} 74... Kc5 {[%clk 0:00:03.8]}
75. Kf4 {[%clk 0:00:07.8]} 75... Kb6 {[%clk 0:00:03.6]} 76. Kf5 {[%clk
0:00:06.5]} 76... Nd4+ {[%clk 0:00:04.2]} 77. Ke4 {[%clk 0:00:07.2]} 77... Ne6
{[%clk 0:00:04.6]} 78. Bc8 {[%clk 0:00:06.4]} 78... Ng5+ {[%clk 0:00:03.7]} 79.
Kf4 {[%clk 0:00:06.7]} 79... Ka7 {[%clk 0:00:03.6]} 80. Kg4 {[%clk 0:00:07]}
80... Kb6 {[%clk 0:00:03.4]} 81. f4 {[%clk 0:00:07.4]} 81... Nf7 {[%clk
0:00:04.2]} 82. Bb7 {[%clk 0:00:05.6]} 82... Nd6 {[%clk 0:00:04.9]} 83. Kh5
{[%clk 0:00:06.3]} 83... Nb5 {[%clk 0:00:03.1]} 84. Kg6 {[%clk 0:00:06.6]} 84...
Nd4 {[%clk 0:00:02.1]} 85. Kxf6 {[%clk 0:00:06.8]} 85... Ne2 {[%clk 0:00:02.8]}
86. f5 {[%clk 0:00:07]} 86... Ng3 {[%clk 0:00:03.5]} 87. Ke6 {[%clk 0:00:07.1]}
87... Nh5 {[%clk 0:00:02.8]} 88. f6 {[%clk 0:00:07.5]} 88... Nf4+ {[%clk
0:00:03.3]} 89. Ke7 {[%clk 0:00:07.8]} 89... Ng6+ {[%clk 0:00:02.9]} 90. Ke8
{[%clk 0:00:08.3]} 90... Ka7 {[%clk 0:00:02.9]} 91. f7 {[%clk 0:00:08.7]} 91...
Kb6 {[%clk 0:00:03.7]} 92. f8=Q {[%clk 0:00:09.2]} 92... Nxf8 {[%clk 0:00:04.6]}
93. Kxf8 {[%clk 0:00:10.1]} 93... Ka7 {[%clk 0:00:05.4]} 94. Ke7 {[%clk
0:00:11]} 94... Kb6 {[%clk 0:00:06.3]} 95. Kd6 {[%clk 0:00:11.9]} 95... Ka7
{[%clk 0:00:07.2]} 96. Kc5 {[%clk 0:00:12.6]} 96... Kb8 {[%clk 0:00:07.7]} 97.
Kb5 {[%clk 0:00:13.2]} 97... Ka7 {[%clk 0:00:08.6]} 98. Bf3 {[%clk 0:00:13.6]}
98... Kb8 {[%clk 0:00:09.3]} 99. Kb6 {[%clk 0:00:14.5]} 99... Kc8 {[%clk
0:00:10.2]} 100. a7 {[%clk 0:00:15.4]} 100... Kd7 {[%clk 0:00:11.1]} 101. a8=Q
{[%clk 0:00:16]} 101... Ke7 {[%clk 0:00:12]} 102. Qe4+ {[%clk 0:00:16.5]} 102...
Kf7 {[%clk 0:00:12.9]} 103. Qc6 {[%clk 0:00:16.4]} 103... Kg7 {[%clk 0:00:13.8]}
104. Qe6 {[%clk 0:00:16.9]} 104... Kh7 {[%clk 0:00:14.7]} 105. Qg4 {[%clk
0:00:17.2]} 105... Kh6 {[%clk 0:00:15.1]} 106. Bd5 {[%clk 0:00:17.1]} 106... Kh7
{[%clk 0:00:16]} 107. Bf7 {[%clk 0:00:17.2]} 107... Kh6 {[%clk 0:00:16.9]} 108.
Qg6# {[%clk 0:00:17.7]} 1-0